[Event "Titled Tuesday Blitz January 03 Early 2023"]
[White "Rustemov, Alexander"]
[Black "Deac, Bogdan-Daniel"]
[WhiteFideId "4119002"]
[BlackFideId "1226380"]
[WhiteElo "2525"]
[BlackElo "2700"]
[Result "1/2-1/2"]
[Round "05"]
[TimeControl "180+2"]
[Date "2023.01.03"]
[WhiteClock "0:00:07"]
[BlackClock "0:00:05"]

1. d4 {[%clk 0:03:00]}  Nf6 {[%clk 0:02:47]} 2. c4 {[%clk 0:03:00]}  g6 {[%clk 0:02:47]} 3. Nf3 {[%clk 0:03:00]}  Bg7 {[%clk 0:02:48]} 4. g3 {[%clk 0:03:01]}  c5 {[%clk 0:02:47]} 5. Bg2 {[%clk 0:03:00]}  O-O {[%clk 0:02:44]} 6. O-O {[%clk 0:03:00]}  d6 {[%clk 0:02:44]} 7. Nc3 {[%clk 0:02:59]}  Nc6 {[%clk 0:02:41]} 8. dxc5 {[%clk 0:02:59]}  dxc5 {[%clk 0:02:38]} 9. Bf4 {[%clk 0:03:00]}  Be6 {[%clk 0:02:34]} 10. Ne5 {[%clk 0:02:59]}  Na5 {[%clk 0:01:42]} 11. Qa4 {[%clk 0:02:57]}  Nh5 {[%clk 0:01:42]} 12. Rfd1 {[%clk 0:02:44]}  Qb6 {[%clk 0:01:41]} 13. Nd5 {[%clk 0:02:33]}  Bxd5 {[%clk 0:01:40]} 14. cxd5 {[%clk 0:02:25]}  Nxf4 {[%clk 0:01:31]} 15. gxf4 {[%clk 0:02:23]}  Rfd8 {[%clk 0:01:30]} 16. Rac1 {[%clk 0:02:19]}  Rac8 {[%clk 0:01:08]} 17. b3 {[%clk 0:02:17]}  Qa6 {[%clk 0:01:02]} 18. Nc4 {[%clk 0:02:12]}  b6 {[%clk 0:00:55]} 19. Nxa5 {[%clk 0:02:08]}  bxa5 {[%clk 0:00:51]} 20. Qc4 {[%clk 0:02:05]}  Qb6 {[%clk 0:00:51]} 21. e3 {[%clk 0:02:00]}  Qb4 {[%clk 0:00:49]} 22. Rc2 {[%clk 0:01:58]}  Bf6 {[%clk 0:00:27]} 23. Rdc1 {[%clk 0:01:56]}  Qb6 {[%clk 0:00:27]} 24. Bf3 {[%clk 0:01:52]}  Kg7 {[%clk 0:00:26]} 25. Kg2 {[%clk 0:01:52]}  Re8 {[%clk 0:00:23]} 26. Qe2 {[%clk 0:01:47]}  a4 {[%clk 0:00:19]} 27. bxa4 {[%clk 0:01:46]}  Qd6 {[%clk 0:00:18]} 28. Qb5 {[%clk 0:01:44]}  a6 {[%clk 0:00:11]} 29. Qa5 {[%clk 0:01:41]}  Rb8 {[%clk 0:00:08]} 30. Qxc5 {[%clk 0:01:39]}  Qd8 {[%clk 0:00:08]} 31. Qc7 {[%clk 0:01:37]}  Rb4 {[%clk 0:00:07]} 32. Qxd8 {[%clk 0:01:36]}  Rxd8 {[%clk 0:00:08]} 33. Rc4 {[%clk 0:01:36]}  Rdb8 {[%clk 0:00:08]} 34. Be2 {[%clk 0:01:31]}  Rxc4 {[%clk 0:00:07]} 35. Bxc4 {[%clk 0:01:29]}  Rb2 {[%clk 0:00:06]} 36. Bxa6 {[%clk 0:01:15]}  Rxa2 {[%clk 0:00:06]} 37. Bb5 {[%clk 0:01:14]}  Bh4 {[%clk 0:00:06]} 38. Rf1 {[%clk 0:01:13]}  f5 {[%clk 0:00:06]} 39. Kf3 {[%clk 0:01:08]}  h6 {[%clk 0:00:06]} 40. h3 {[%clk 0:01:01]}  Kf6 {[%clk 0:00:06]} 41. Bd7 {[%clk 0:00:58]}  g5 {[%clk 0:00:05]} 42. fxg5+ {[%clk 0:00:58]}  hxg5 {[%clk 0:00:06]} 43. Kg2 {[%clk 0:00:50]}  Ke5 {[%clk 0:00:06]} 44. Bc6 {[%clk 0:00:50]}  Kd6 {[%clk 0:00:05]} 45. Kf3 {[%clk 0:00:43]}  Ke5 {[%clk 0:00:05]} 46. Kg2 {[%clk 0:00:39]}  f4 {[%clk 0:00:04]} 47. Kf3 {[%clk 0:00:37]}  Ra3 {[%clk 0:00:04]} 48. Re1 {[%clk 0:00:32]}  Kd6 {[%clk 0:00:04]} 49. Re2 {[%clk 0:00:31]}  fxe3 {[%clk 0:00:03]} 50. Rxe3 {[%clk 0:00:30]}  Ra2 {[%clk 0:00:03]} 51. Re6+ {[%clk 0:00:28]}  Kc5 {[%clk 0:00:03]} 52. Re2 {[%clk 0:00:24]}  Ra3+ {[%clk 0:00:03]} 53. Kg4 {[%clk 0:00:24]}  Ra1 {[%clk 0:00:02]} 54. Rxe7 {[%clk 0:00:23]}  Bxf2 {[%clk 0:00:02]} 55. Kxg5 {[%clk 0:00:21]}  Rh1 {[%clk 0:00:03]} 56. Rh7 {[%clk 0:00:19]}  Rg1+ {[%clk 0:00:03]} 57. Kf5 {[%clk 0:00:19]}  Bd4 {[%clk 0:00:03]} 58. h4 {[%clk 0:00:19]}  Rf1+ {[%clk 0:00:03]} 59. Ke6 {[%clk 0:00:18]}  Re1+ {[%clk 0:00:04]} 60. Kd7 {[%clk 0:00:18]}  Rh1 {[%clk 0:00:03]} 61. h5 {[%clk 0:00:19]}  Be5 {[%clk 0:00:04]} 62. Ke6 {[%clk 0:00:17]}  Bd6 {[%clk 0:00:04]} 63. Kf5 {[%clk 0:00:15]}  Rf1+ {[%clk 0:00:03]} 64. Ke4 {[%clk 0:00:16]}  Re1+ {[%clk 0:00:04]} 65. Kd3 {[%clk 0:00:16]}  Rd1+ {[%clk 0:00:04]} 66. Kc2 {[%clk 0:00:16]}  Rh1 {[%clk 0:00:04]} 67. Rh8 {[%clk 0:00:15]}  Rh2+ {[%clk 0:00:04]} 68. Kd3 {[%clk 0:00:15]}  Rh3+ {[%clk 0:00:04]} 69. Ke4 {[%clk 0:00:15]}  Rh4+ {[%clk 0:00:04]} 70. Kf5 {[%clk 0:00:15]}  Rf4+ {[%clk 0:00:04]} 71. Kg5 {[%clk 0:00:15]}  Rf1 {[%clk 0:00:05]} 72. h6 {[%clk 0:00:16]}  Rg1+ {[%clk 0:00:05]} 73. Kf5 {[%clk 0:00:16]}  Rf1+ {[%clk 0:00:05]} 74. Kg6 {[%clk 0:00:16]}  Rg1+ {[%clk 0:00:05]} 75. Kh7 {[%clk 0:00:17]}  Rh1 {[%clk 0:00:05]} 76. Rg8 {[%clk 0:00:17]}  Bf4 {[%clk 0:00:05]} 77. Rg6 {[%clk 0:00:17]}  Rh2 {[%clk 0:00:05]} 78. a5 {[%clk 0:00:17]}  Ra2 {[%clk 0:00:04]} 79. Rf6 {[%clk 0:00:16]}  Be5 {[%clk 0:00:04]} 80. Re6 {[%clk 0:00:16]}  Bd6 {[%clk 0:00:04]} 81. Rxd6 {[%clk 0:00:14]}  Kxd6 {[%clk 0:00:03]} 82. Kg7 {[%clk 0:00:14]}  Rg2+ {[%clk 0:00:04]} 83. Kh8 {[%clk 0:00:15]}  Kc7 {[%clk 0:00:03]} 84. h7 {[%clk 0:00:14]}  Ra2 {[%clk 0:00:02]} 85. Kg7 {[%clk 0:00:13]}  Rg2+ {[%clk 0:00:03]} 86. Kf6 {[%clk 0:00:14]}  Rf2+ {[%clk 0:00:03]} 87. Kg6 {[%clk 0:00:13]}  Rg2+ {[%clk 0:00:03]} 88. Kf7 {[%clk 0:00:13]}  Rh2 {[%clk 0:00:03]} 89. a6 {[%clk 0:00:07]}  Kb6 {[%clk 0:00:02]} 90. Kg7 {[%clk 0:00:07]}  Rg2+ {[%clk 0:00:02]} 91. Kh8 {[%clk 0:00:07]}  Rh2 {[%clk 0:00:03]} 92. Bd7 {[%clk 0:00:06]}  Kxa6 {[%clk 0:00:03]} 93. Bf5 {[%clk 0:00:06]}  Kb6 {[%clk 0:00:03]} 94. Kg7 {[%clk 0:00:06]}  Kc5 {[%clk 0:00:03]} 95. Be6 {[%clk 0:00:06]}  Rg2+ {[%clk 0:00:02]} 96. Kh6 {[%clk 0:00:07]}  Rh2+ {[%clk 0:00:03]} 97. Kg6 {[%clk 0:00:07]}  Kd6 {[%clk 0:00:03]} 98. Kg7 {[%clk 0:00:07]}  Rg2+ {[%clk 0:00:03]} 99. Kh6 {[%clk 0:00:07]}  Rh2+ {[%clk 0:00:03]} 100. Kg6 {[%clk 0:00:08]}  Ke7 {[%clk 0:00:04]} 101. Bg4 {[%clk 0:00:07]}  Kd6 {[%clk 0:00:04]} 102. Bf5 {[%clk 0:00:07]}  Rg2+ {[%clk 0:00:03]} 103. Kf6 {[%clk 0:00:07]}  Rh2 {[%clk 0:00:04]} 104. Kg7 {[%clk 0:00:07]}  Rxh7+ {[%clk 0:00:04]} 105. Bxh7 {[%clk 0:00:07]}  Kxd5 {[%clk 0:00:05]} 1/2-1/2


[Site "https://www.chess.com"]

[Event "Titled Tuesday Blitz January 03 Early 2023"]
[White "Nepomniachtchi, Ian"]
[Black "Harsh Suresh"]
[WhiteFideId "4168119"]
[BlackFideId "45018464"]
[WhiteElo "2794"]
[BlackElo "2298"]
[Result "1/2-1/2"]
[Round "05"]
[TimeControl "180+2"]
[Date "2023.01.03"]
[WhiteClock "0:01:38"]
[BlackClock "0:00:08"]

1. e4 {[%clk 0:02:59]}  c6 {[%clk 0:02:58]} 2. d3 {[%clk 0:02:59]}  d5 {[%clk 0:02:58]} 3. Nf3 {[%clk 0:03:00]}  dxe4 {[%clk 0:02:58]} 4. dxe4 {[%clk 0:03:00]}  Qxd1+ {[%clk 0:02:59]} 5. Kxd1 {[%clk 0:03:01]}  Nf6 {[%clk 0:02:59]} 6. Nfd2 {[%clk 0:03:02]}  h5 {[%clk 0:02:59]} 7. a4 {[%clk 0:03:01]}  g6 {[%clk 0:02:51]} 8. a5 {[%clk 0:03:01]}  Bh6 {[%clk 0:02:49]} 9. f3 {[%clk 0:03:01]}  h4 {[%clk 0:02:48]} 10. Nc4 {[%clk 0:03:00]}  Bxc1 {[%clk 0:02:46]} 11. Kxc1 {[%clk 0:03:01]}  Be6 {[%clk 0:02:47]} 12. Nbd2 {[%clk 0:02:59]}  Nbd7 {[%clk 0:02:45]} 13. b4 {[%clk 0:02:55]}  Rh5 {[%clk 0:02:37]} 14. Ne3 {[%clk 0:02:54]}  O-O-O {[%clk 0:02:34]} 15. a6 {[%clk 0:02:51]}  b6 {[%clk 0:02:33]} 16. Bc4 {[%clk 0:02:51]}  Bxc4 {[%clk 0:02:30]} 17. Ndxc4 {[%clk 0:02:52]}  Ne5 {[%clk 0:02:23]} 18. Nxe5 {[%clk 0:02:51]}  Rxe5 {[%clk 0:02:23]} 19. Rd1 {[%clk 0:02:52]}  Rxd1+ {[%clk 0:02:16]} 20. Kxd1 {[%clk 0:02:53]}  Rb5 {[%clk 0:01:58]} 21. c3 {[%clk 0:02:49]}  Kc7 {[%clk 0:01:52]} 22. Kc2 {[%clk 0:02:48]}  Nh5 {[%clk 0:01:47]} 23. Rd1 {[%clk 0:02:44]}  Rg5 {[%clk 0:01:46]} 24. Kb3 {[%clk 0:02:41]}  Nf4 {[%clk 0:01:45]} 25. Rd2 {[%clk 0:02:41]}  Kc8 {[%clk 0:01:35]} 26. c4 {[%clk 0:02:41]}  Kc7 {[%clk 0:01:33]} 27. Kc3 {[%clk 0:02:40]}  Kc8 {[%clk 0:01:30]} 28. Ng4 {[%clk 0:02:38]}  Kc7 {[%clk 0:01:23]} 29. Kd4 {[%clk 0:02:37]}  Ne6+ {[%clk 0:01:09]} 30. Ke3 {[%clk 0:02:37]}  f5 {[%clk 0:01:09]} 31. exf5 {[%clk 0:02:33]}  Rxf5 {[%clk 0:01:08]} 32. g3 {[%clk 0:02:30]}  hxg3 {[%clk 0:01:04]} 33. hxg3 {[%clk 0:02:31]}  b5 {[%clk 0:00:59]} 34. c5 {[%clk 0:02:31]}  Nf8 {[%clk 0:00:41]} 35. f4 {[%clk 0:02:23]}  Nd7 {[%clk 0:00:40]} 36. Rh2 {[%clk 0:02:23]}  Rh5 {[%clk 0:00:32]} 37. Rd2 {[%clk 0:02:22]}  Rh1 {[%clk 0:00:27]} 38. Ne5 {[%clk 0:02:09]}  Re1+ {[%clk 0:00:19]} 39. Kf2 {[%clk 0:02:05]}  Nxe5 {[%clk 0:00:19]} 40. Kxe1 {[%clk 0:02:05]}  Nf3+ {[%clk 0:00:19]} 41. Ke2 {[%clk 0:02:06]}  Nxd2 {[%clk 0:00:20]} 42. Kxd2 {[%clk 0:02:06]}  Kd7 {[%clk 0:00:21]} 43. Ke3 {[%clk 0:02:07]}  Ke6 {[%clk 0:00:20]} 44. Ke4 {[%clk 0:02:07]}  Kf6 {[%clk 0:00:18]} 45. g4 {[%clk 0:02:06]}  e6 {[%clk 0:00:15]} 46. Kd4 {[%clk 0:02:02]}  e5+ {[%clk 0:00:10]} 47. fxe5+ {[%clk 0:01:49]}  Ke6 {[%clk 0:00:10]} 48. Ke4 {[%clk 0:01:47]}  g5 {[%clk 0:00:11]} 49. Kd4 {[%clk 0:01:47]}  Ke7 {[%clk 0:00:09]} 50. Kd3 {[%clk 0:01:47]}  Kd7 {[%clk 0:00:09]} 51. Ke3 {[%clk 0:01:47]}  Ke7 {[%clk 0:00:09]} 52. Kd4 {[%clk 0:01:47]}  Kd7 {[%clk 0:00:08]} 53. Ke4 {[%clk 0:01:48]}  Ke6 {[%clk 0:00:08]} 54. Kd4 {[%clk 0:01:48]}  Kd7 {[%clk 0:00:08]} 55. Ke3 {[%clk 0:01:49]}  Ke7 {[%clk 0:00:08]} 56. Kf3 {[%clk 0:01:50]}  Kf7 {[%clk 0:00:08]} 57. Ke4 {[%clk 0:01:38]}  Ke6 {[%clk 0:00:08]} 1/2-1/2


[Site "https://www.chess.com"]

[Event "Titled Tuesday Blitz January 03 Early 2023"]
[White "Tanenbaum, Zachary"]
[Black "Pranav, V"]
[WhiteFideId "2060850"]
[BlackFideId "25060783"]
[WhiteElo "2261"]
[BlackElo "2597"]
[Result "0-1"]
[Round "05"]
[TimeControl "180+2"]
[Date "2023.01.03"]
[WhiteClock "0:00:05"]
[BlackClock "0:00:54"]

1. e4 {[%clk 0:02:57]}  Nc6 {[%clk 0:02:57]} 2. Nf3 {[%clk 0:02:57]}  e6 {[%clk 0:02:57]} 3. d4 {[%clk 0:02:57]}  d5 {[%clk 0:02:58]} 4. Nc3 {[%clk 0:02:57]}  Nf6 {[%clk 0:02:57]} 5. e5 {[%clk 0:02:58]}  Ne4 {[%clk 0:02:57]} 6. Ne2 {[%clk 0:02:58]}  f6 {[%clk 0:02:56]} 7. Ng3 {[%clk 0:02:58]}  fxe5 {[%clk 0:02:54]} 8. Bb5 {[%clk 0:02:56]}  exd4 {[%clk 0:02:47]} 9. Nxe4 {[%clk 0:02:56]}  dxe4 {[%clk 0:02:48]} 10. Nxd4 {[%clk 0:02:53]}  Bd7 {[%clk 0:02:45]} 11. Bxc6 {[%clk 0:02:48]}  bxc6 {[%clk 0:02:39]} 12. Qh5+ {[%clk 0:02:42]}  g6 {[%clk 0:02:15]} 13. Qe5 {[%clk 0:02:43]}  Kf7 {[%clk 0:02:13]} 14. Bg5 {[%clk 0:02:22]}  Qb8 {[%clk 0:01:57]} 15. Qf6+ {[%clk 0:02:01]}  Kg8 {[%clk 0:01:57]} 16. Nxe6 {[%clk 0:01:58]}  Qb5 {[%clk 0:01:29]} 17. Nxc7 {[%clk 0:01:45]}  Qa5+ {[%clk 0:01:29]} 18. Bd2 {[%clk 0:01:33]}  Bb4 {[%clk 0:01:27]} 19. c3 {[%clk 0:00:29]}  Qxc7 {[%clk 0:01:18]} 20. cxb4 {[%clk 0:00:29]}  Rf8 {[%clk 0:01:18]} 21. Qd4 {[%clk 0:00:19]}  Kf7 {[%clk 0:01:18]} 22. Bc3 {[%clk 0:00:19]}  Rhg8 {[%clk 0:01:17]} 23. O-O-O {[%clk 0:00:20]}  Bf5 {[%clk 0:01:11]} 24. Qf6+ {[%clk 0:00:19]}  Ke8 {[%clk 0:01:10]} 25. Qh4 {[%clk 0:00:11]}  g5 {[%clk 0:01:08]} 26. Qh6 {[%clk 0:00:10]}  Rg6 {[%clk 0:01:02]} 27. Qh5 {[%clk 0:00:10]}  Qf4+ {[%clk 0:01:00]} 28. Rd2 {[%clk 0:00:08]}  Rf7 {[%clk 0:00:55]} 29. Re1 {[%clk 0:00:07]}  Bg4 {[%clk 0:00:55]} 30. g3 {[%clk 0:00:06]}  Qxd2+ {[%clk 0:00:53]} 31. Bxd2 {[%clk 0:00:05]}  Bxh5 {[%clk 0:00:53]} 32. Rxe4+ {[%clk 0:00:05]}  Re7 {[%clk 0:00:54]} 0-1


[Site "https://www.chess.com"]

[Event "Titled Tuesday Blitz January 03 Early 2023"]
[White "Lazavik, Denis"]
[Black "Pakleza, Zbigniew"]
[WhiteFideId "13515110"]
[BlackFideId "1119290"]
[WhiteElo "2544"]
[BlackElo "2494"]
[Result "1/2-1/2"]
[Round "05"]
[TimeControl "180+2"]
[Date "2023.01.03"]
[WhiteClock "0:00:26"]
[BlackClock "0:00:35"]

1. d4 {[%clk 0:03:00]}  d5 {[%clk 0:02:59]} 2. c4 {[%clk 0:03:01]}  c6 {[%clk 0:02:59]} 3. Nf3 {[%clk 0:03:02]}  Nf6 {[%clk 0:03:00]} 4. e3 {[%clk 0:03:02]}  Bf5 {[%clk 0:03:00]} 5. Nc3 {[%clk 0:03:02]}  e6 {[%clk 0:03:01]} 6. Nh4 {[%clk 0:03:03]}  Be4 {[%clk 0:03:01]} 7. f3 {[%clk 0:03:03]}  Bg6 {[%clk 0:03:02]} 8. Bd2 {[%clk 0:03:03]}  Nbd7 {[%clk 0:03:02]} 9. Qb3 {[%clk 0:02:59]}  Qb6 {[%clk 0:03:02]} 10. Nxg6 {[%clk 0:02:57]}  hxg6 {[%clk 0:03:03]} 11. g3 {[%clk 0:02:56]}  Bd6 {[%clk 0:03:02]} 12. Kf2 {[%clk 0:02:57]}  O-O-O {[%clk 0:02:58]} 13. c5 {[%clk 0:02:35]}  Qxb3 {[%clk 0:02:55]} 14. axb3 {[%clk 0:02:36]}  Bb8 {[%clk 0:02:56]} 15. Kg2 {[%clk 0:02:21]}  e5 {[%clk 0:02:52]} 16. b4 {[%clk 0:02:20]}  a6 {[%clk 0:02:52]} 17. Bd3 {[%clk 0:02:09]}  Rde8 {[%clk 0:02:50]} 18. Rae1 {[%clk 0:01:50]}  exd4 {[%clk 0:02:21]} 19. exd4 {[%clk 0:01:49]}  Rxe1 {[%clk 0:02:22]} 20. Rxe1 {[%clk 0:01:46]}  Nf8 {[%clk 0:02:21]} 21. h4 {[%clk 0:01:41]}  Kd7 {[%clk 0:02:18]} 22. Ne2 {[%clk 0:01:25]}  Ne6 {[%clk 0:02:16]} 23. Rh1 {[%clk 0:01:21]}  Bc7 {[%clk 0:02:08]} 24. g4 {[%clk 0:01:18]}  Ng8 {[%clk 0:01:55]} 25. f4 {[%clk 0:01:08]}  Ne7 {[%clk 0:01:43]} 26. Kf3 {[%clk 0:01:06]}  f5 {[%clk 0:01:37]} 27. g5 {[%clk 0:01:05]}  Nc8 {[%clk 0:01:17]} 28. Be3 {[%clk 0:00:57]}  Na7 {[%clk 0:01:15]} 29. Ng3 {[%clk 0:00:46]}  Nb5 {[%clk 0:01:13]} 30. Bxb5 {[%clk 0:00:45]}  axb5 {[%clk 0:01:10]} 31. h5 {[%clk 0:00:45]}  gxh5 {[%clk 0:01:00]} 32. Rxh5 {[%clk 0:00:34]}  Rxh5 {[%clk 0:00:56]} 33. Nxh5 {[%clk 0:00:35]}  g6 {[%clk 0:00:57]} 34. Ng3 {[%clk 0:00:35]}  Bd8 {[%clk 0:00:41]} 35. Ne2 {[%clk 0:00:34]}  Be7 {[%clk 0:00:38]} 36. Bf2 {[%clk 0:00:30]}  Bf8 {[%clk 0:00:37]} 37. Ke3 {[%clk 0:00:30]}  Nc7 {[%clk 0:00:36]} 38. Kd3 {[%clk 0:00:29]}  Ne6 {[%clk 0:00:36]} 39. Be3 {[%clk 0:00:29]}  Be7 {[%clk 0:00:37]} 40. Ng1 {[%clk 0:00:29]}  Bd8 {[%clk 0:00:35]} 41. Ne2 {[%clk 0:00:25]}  Bc7 {[%clk 0:00:35]} 42. Bd2 {[%clk 0:00:26]}  Ke7 {[%clk 0:00:35]} 1/2-1/2


[Site "https://www.chess.com"]

[Event "Titled Tuesday Blitz January 03 Early 2023"]
[White "Puranik, Abhimanyu"]
[Black "Vaibhav, Suri"]
[WhiteFideId "5061245"]
[BlackFideId "5045185"]
[WhiteElo "2613"]
[BlackElo "2595"]
[Result "1-0"]
[Round "05"]
[TimeControl "180+2"]
[Date "2023.01.03"]
[WhiteClock "0:00:44"]
[BlackClock "0:00:05"]

1. e4 {[%clk 0:02:59]}  c6 {[%clk 0:02:59]} 2. Nf3 {[%clk 0:02:58]}  d5 {[%clk 0:02:59]} 3. Nc3 {[%clk 0:02:59]}  Bg4 {[%clk 0:02:58]} 4. h3 {[%clk 0:02:59]}  Bxf3 {[%clk 0:02:58]} 5. Qxf3 {[%clk 0:02:59]}  Nf6 {[%clk 0:02:59]} 6. Be2 {[%clk 0:02:58]}  e6 {[%clk 0:02:56]} 7. O-O {[%clk 0:02:57]}  Nbd7 {[%clk 0:02:54]} 8. d4 {[%clk 0:02:57]}  dxe4 {[%clk 0:02:54]} 9. Nxe4 {[%clk 0:02:57]}  Nxe4 {[%clk 0:02:55]} 10. Qxe4 {[%clk 0:02:58]}  Nf6 {[%clk 0:02:55]} 11. Qe3 {[%clk 0:02:55]}  Bd6 {[%clk 0:02:55]} 12. c3 {[%clk 0:02:55]}  O-O {[%clk 0:02:55]} 13. Rd1 {[%clk 0:02:55]}  Qc7 {[%clk 0:02:55]} 14. a4 {[%clk 0:02:48]}  Rfe8 {[%clk 0:02:50]} 15. Qf3 {[%clk 0:02:47]}  Rad8 {[%clk 0:02:48]} 16. Bc4 {[%clk 0:02:43]}  Nd5 {[%clk 0:02:32]} 17. g3 {[%clk 0:02:40]}  a6 {[%clk 0:02:27]} 18. a5 {[%clk 0:02:36]}  Be7 {[%clk 0:02:22]} 19. Kg2 {[%clk 0:02:34]}  Rd7 {[%clk 0:02:17]} 20. h4 {[%clk 0:02:34]}  Bf6 {[%clk 0:02:16]} 21. Bg5 {[%clk 0:02:31]}  Qd8 {[%clk 0:02:08]} 22. Qg4 {[%clk 0:02:07]}  Kh8 {[%clk 0:01:42]} 23. Bd3 {[%clk 0:01:58]}  g6 {[%clk 0:01:28]} 24. Bc2 {[%clk 0:01:54]}  h5 {[%clk 0:01:24]} 25. Bxf6+ {[%clk 0:01:50]}  Qxf6 {[%clk 0:01:25]} 26. Qe4 {[%clk 0:01:48]}  Kg7 {[%clk 0:01:24]} 27. Re1 {[%clk 0:01:43]}  Rde7 {[%clk 0:01:18]} 28. Qe5 {[%clk 0:01:30]}  Qxe5 {[%clk 0:01:12]} 29. dxe5 {[%clk 0:01:23]}  Rd7 {[%clk 0:01:11]} 30. Red1 {[%clk 0:01:22]}  Red8 {[%clk 0:01:11]} 31. Kf3 {[%clk 0:01:20]}  Kf8 {[%clk 0:01:08]} 32. Rd4 {[%clk 0:01:10]}  Nc7 {[%clk 0:01:07]} 33. Rxd7 {[%clk 0:01:09]}  Rxd7 {[%clk 0:01:08]} 34. Rd1 {[%clk 0:01:10]}  Rxd1 {[%clk 0:00:39]} 35. Bxd1 {[%clk 0:01:11]}  Ke7 {[%clk 0:00:40]} 36. Ke4 {[%clk 0:01:09]}  Nd5 {[%clk 0:00:31]} 37. f3 {[%clk 0:01:04]}  Kd7 {[%clk 0:00:31]} 38. g4 {[%clk 0:01:02]}  hxg4 {[%clk 0:00:24]} 39. fxg4 {[%clk 0:01:02]}  Ke7 {[%clk 0:00:24]} 40. Bf3 {[%clk 0:00:56]}  f6 {[%clk 0:00:16]} 41. exf6+ {[%clk 0:00:56]}  Kxf6 {[%clk 0:00:16]} 42. g5+ {[%clk 0:00:55]}  Ke7 {[%clk 0:00:16]} 43. Ke5 {[%clk 0:00:50]}  Kd7 {[%clk 0:00:07]} 44. Be4 {[%clk 0:00:48]}  Ne7 {[%clk 0:00:04]} 45. Kf6 {[%clk 0:00:47]}  Nf5 {[%clk 0:00:05]} 46. h5 {[%clk 0:00:43]}  gxh5 {[%clk 0:00:05]} 47. Bxf5 {[%clk 0:00:43]}  exf5 {[%clk 0:00:05]} 48. g6 {[%clk 0:00:44]}  f4 {[%clk 0:00:05]} 49. g7 {[%clk 0:00:44]} 1-0


[Site "https://www.chess.com"]

[Event "Titled Tuesday Blitz January 03 Early 2023"]
[White "Rozman, Levy"]
[Black "Molina, Roberto Junio Brito"]
[WhiteFideId "2039877"]
[BlackFideId "2109450"]
[WhiteElo "2322"]
[BlackElo "2403"]
[Result "0-1"]
[Round "05"]
[TimeControl "180+2"]
[Date "2023.01.03"]
[WhiteClock "0:00:09"]
[BlackClock "0:00:06"]

1. d4 {[%clk 0:03:00]}  d5 {[%clk 0:02:59]} 2. Bg5 {[%clk 0:02:57]}  h6 {[%clk 0:02:58]} 3. Bh4 {[%clk 0:02:57]}  c6 {[%clk 0:02:56]} 4. Nc3 {[%clk 0:02:57]}  Bf5 {[%clk 0:02:55]} 5. f3 {[%clk 0:02:57]}  g5 {[%clk 0:02:49]} 6. Bf2 {[%clk 0:02:56]}  Nf6 {[%clk 0:02:48]} 7. g4 {[%clk 0:02:55]}  Bg6 {[%clk 0:02:47]} 8. h4 {[%clk 0:02:56]}  Bg7 {[%clk 0:02:46]} 9. Nh3 {[%clk 0:02:50]}  Qb6 {[%clk 0:02:38]} 10. Rb1 {[%clk 0:02:46]}  Nbd7 {[%clk 0:02:36]} 11. Bg2 {[%clk 0:02:44]}  gxh4 {[%clk 0:02:28]} 12. Nf4 {[%clk 0:02:41]}  O-O-O {[%clk 0:02:23]} 13. Nxg6 {[%clk 0:02:38]}  fxg6 {[%clk 0:02:23]} 14. Rxh4 {[%clk 0:02:38]}  g5 {[%clk 0:02:17]} 15. Rh1 {[%clk 0:02:35]}  Nf8 {[%clk 0:02:09]} 16. Qd3 {[%clk 0:02:30]}  Kb8 {[%clk 0:02:03]} 17. b4 {[%clk 0:02:26]}  Ka8 {[%clk 0:01:40]} 18. a4 {[%clk 0:02:23]}  Ne6 {[%clk 0:01:33]} 19. e3 {[%clk 0:02:22]}  Qc7 {[%clk 0:01:22]} 20. b5 {[%clk 0:02:07]}  c5 {[%clk 0:01:20]} 21. b6 {[%clk 0:02:06]}  Qc6 {[%clk 0:01:14]} 22. Nb5 {[%clk 0:01:56]}  cxd4 {[%clk 0:01:05]} 23. Nxa7 {[%clk 0:01:55]}  Qc4 {[%clk 0:00:50]} 24. Qxc4 {[%clk 0:01:44]}  dxc4 {[%clk 0:00:51]} 25. Rb5 {[%clk 0:01:44]}  dxe3 {[%clk 0:00:37]} 26. Bxe3 {[%clk 0:01:45]}  Nd5 {[%clk 0:00:35]} 27. Kf2 {[%clk 0:00:50]}  Nxe3 {[%clk 0:00:31]} 28. Kxe3 {[%clk 0:00:49]}  Bd4+ {[%clk 0:00:23]} 29. Ke2 {[%clk 0:00:42]}  Nf4+ {[%clk 0:00:24]} 30. Kf1 {[%clk 0:00:43]}  Be3 {[%clk 0:00:20]} 31. Ke1 {[%clk 0:00:26]}  Nxg2+ {[%clk 0:00:17]} 32. Kf1 {[%clk 0:00:18]}  Nf4 {[%clk 0:00:13]} 33. Ke1 {[%clk 0:00:18]}  Rd2 {[%clk 0:00:08]} 34. Rxg5 {[%clk 0:00:09]}  Rhd8 {[%clk 0:00:06]} 0-1


[Site "https://www.chess.com"]

[Event "Titled Tuesday Blitz January 03 Early 2023"]
[White "Maksimovic, Bojan"]
[Black "Xu, Yi"]
[WhiteFideId "14408120"]
[BlackFideId "8605564"]
[WhiteElo "2486"]
[BlackElo "2527"]
[Result "0-1"]
[Round "05"]
[TimeControl "180+2"]
[Date "2023.01.03"]
[WhiteClock "0:00:14"]
[BlackClock "0:00:09"]

1. g3 {[%clk 0:02:34]}  Nf6 {[%clk 0:02:59]} 2. Bg2 {[%clk 0:02:33]}  d5 {[%clk 0:02:59]} 3. Nf3 {[%clk 0:02:32]}  e6 {[%clk 0:03:00]} 4. O-O {[%clk 0:02:33]}  Be7 {[%clk 0:03:00]} 5. c4 {[%clk 0:02:34]}  O-O {[%clk 0:03:01]} 6. d4 {[%clk 0:02:34]}  dxc4 {[%clk 0:03:00]} 7. Qc2 {[%clk 0:02:35]}  a6 {[%clk 0:03:01]} 8. a4 {[%clk 0:02:35]}  Bd7 {[%clk 0:03:01]} 9. Qxc4 {[%clk 0:02:36]}  Bc6 {[%clk 0:03:02]} 10. Bg5 {[%clk 0:02:36]}  Bd5 {[%clk 0:02:58]} 11. Qc1 {[%clk 0:02:34]}  Nc6 {[%clk 0:02:57]} 12. Nc3 {[%clk 0:02:32]}  Nxd4 {[%clk 0:02:49]} 13. Nxd4 {[%clk 0:02:15]}  Bxg2 {[%clk 0:02:49]} 14. Nxe6 {[%clk 0:02:15]}  Qd6 {[%clk 0:02:49]} 15. Nxf8 {[%clk 0:02:09]}  Bxf1 {[%clk 0:02:48]} 16. Qxf1 {[%clk 0:02:09]}  Rxf8 {[%clk 0:02:47]} 17. Rd1 {[%clk 0:02:09]}  Qb4 {[%clk 0:02:13]} 18. Bxf6 {[%clk 0:02:09]}  Bxf6 {[%clk 0:02:13]} 19. Nd5 {[%clk 0:02:09]}  Qxa4 {[%clk 0:01:54]} 20. Nxf6+ {[%clk 0:02:09]}  gxf6 {[%clk 0:01:55]} 21. e3 {[%clk 0:02:10]}  c5 {[%clk 0:01:51]} 22. Rd6 {[%clk 0:02:10]}  Qb3 {[%clk 0:01:41]} 23. Qe2 {[%clk 0:02:10]}  f5 {[%clk 0:01:37]} 24. Rd3 {[%clk 0:02:00]}  Qc4 {[%clk 0:01:32]} 25. Qd2 {[%clk 0:02:01]}  b5 {[%clk 0:01:20]} 26. Rd5 {[%clk 0:02:01]}  Qb4 {[%clk 0:01:08]} 27. Qc2 {[%clk 0:02:02]}  c4 {[%clk 0:01:02]} 28. Rxf5 {[%clk 0:02:02]}  f6 {[%clk 0:01:02]} 29. Rd5 {[%clk 0:01:53]}  Qe7 {[%clk 0:01:01]} 30. Qf5 {[%clk 0:01:53]}  Rd8 {[%clk 0:01:00]} 31. e4 {[%clk 0:01:21]}  Rxd5 {[%clk 0:00:56]} 32. exd5 {[%clk 0:01:21]}  Qd6 {[%clk 0:00:47]} 33. f4 {[%clk 0:01:12]}  Kg7 {[%clk 0:00:44]} 34. Qe4 {[%clk 0:01:08]}  a5 {[%clk 0:00:42]} 35. Kg2 {[%clk 0:01:08]}  a4 {[%clk 0:00:41]} 36. h4 {[%clk 0:01:09]}  c3 {[%clk 0:00:38]} 37. bxc3 {[%clk 0:00:55]}  a3 {[%clk 0:00:38]} 38. Qd4 {[%clk 0:00:56]}  Kh6 {[%clk 0:00:18]} 39. Qd2 {[%clk 0:00:54]}  f5 {[%clk 0:00:18]} 40. Kf1 {[%clk 0:00:43]}  Kg6 {[%clk 0:00:16]} 41. Ke2 {[%clk 0:00:44]}  Qa6 {[%clk 0:00:11]} 42. d6 {[%clk 0:00:22]}  b4+ {[%clk 0:00:11]} 43. Kf2 {[%clk 0:00:23]}  a2 {[%clk 0:00:11]} 44. d7 {[%clk 0:00:13]}  a1=Q {[%clk 0:00:11]} 45. d8=Q {[%clk 0:00:14]}  Q1f1+ {[%clk 0:00:10]} 46. Ke3 {[%clk 0:00:15]}  Qe6+ {[%clk 0:00:09]} 47. Kd4 {[%clk 0:00:14]}  Qfc4# {[%clk 0:00:09]} 0-1


[Site "https://www.chess.com"]